[Event "RUS-chT Higher League 2021"]
[Site "Sochi"]
[Date "2021.05.01"]
[Round "1.12"]
[White "Kochukova, Anna"]
[Black "Zhelnin, Vladimir V"]
[Result "0-1"]
[ECO "B53"]
[WhiteElo "2108"]
[BlackElo "2408"]
[Annotator "NA"]
[PlyCount "120"]
[EventDate "2021.05.01"]
[EventType "team-tourn"]
[EventCountry "RUS"]
[SourceTitle "playchess.com"]
[Source "ChessBase"]
[SourceQuality "1"]
[TimeControl "40/5400+30:1800+30"]

1. e4 c5 2. Nf3 d6 3. d4 cxd4 {[%emt 0:00:20]} 4. Qxd4 {[%emt 0:00:03]} Bd7 {[%emt 0:01:33]} 5. c4 {[%emt 0:00:37]} Nc6 {[%emt 0:00:09]} 6. Qd1 {[%emt 0:02:20]} g6 {[%emt 0:00:44]} 7. Be2 {[%emt 0:03:55]} Bg7 {[%emt 0:00:15]} 8. O-O {[%emt 0:00:19]} Nf6 {[%emt 0:00:39]} 9. Nc3 {[%emt 0:01:09]} O-O {[%emt 0:00:13]} 10. h3 {[%emt 0:04:34]} Rc8 {[%emt 0:01:20]} 11. Be3 {[%emt 0:03:06]} a6 {[%emt 0:01:31]} 12. Rc1 {[%emt 0:07:57]} Qa5 {[%emt 0:04:03]} 13. Qb3 {[%emt 0:06:10]} Qb4 {[%emt 0:28:42]} 14. Qxb4 {[%emt 0:09:48]} Nxb4 {[%emt 0:00:09]} 15. a3 {[%emt 0:04:36]} Nc6 {[%emt 0:00:02]} 16. b4 {[%emt 0:02:30]} Be6 {[%emt 0:00:55]} 17. Ng5 {[%emt 0:04:21]} Bd7 {[%emt 0:01:41]} 18. f4 {[%emt 0:06:31]} Nh5 {[%emt 0:06:13]} 19. Bxh5 {[%emt 0:10:55]} gxh5 {[%emt 0:00:09]} 20. Rfd1 {[%emt 0:00:52]} h6 {[%emt 0:08:14]} 21. Nf3 {[%emt 0:00:33]} Be6 {[%emt 0:00:19]} 22. Nd5 {[%emt 0:04:44]} f5 {[%emt 0:10:10]} 23. exf5 {[%emt 0:04:50]} Rxf5 {[%emt 0:00:40]} 24. Nh4 {[%emt 0:04:20]} Rff8 {[%emt 0:08:16]} 25. Ng6 {[%emt 0:04:18]} Rfe8 {[%emt 0:02:12]} 26. b5 {[%emt 0:02:56]} axb5 {[%emt 0:02:26]} 27. cxb5 {[%emt 0:00:28]} Bxd5 {[%emt 0:00:15]} 28. Rxd5 {[%emt 0:00:21]} Kf7 {[%emt 0:00:37]} 29. Nh4 {[%emt 0:07:07]} Na5 {[%emt 0:00:36]} 30. Rf5+ {[%emt 0:03:30]} Ke6 {[%emt 0:07:06]} 31. Re1 {[%emt 0:00:25]} Kd7 {[%emt 0:00:01]} 32. Rf7 {[%emt 0:00:59]} Bf6 {[%emt 0:00:12]} 33. Nf5 {[%emt 0:00:53]} Nc4 {[%emt 0:02:54]} 34. Bd4 {[%emt 0:01:08]} Bxd4+ {[%emt 0:02:37]} 35. Nxd4 {[%emt 0:00:01]} Nxa3 {[%emt 0:00:47]} 36. b6 {[%emt 0:01:07]} Rc4 {[%emt 0:04:42]} 37. Ne6 {[%emt 0:00:13]} Nc2 {[%emt 0:00:11]} 38. Re2 {[%emt 0:00:27]} Nd4 {[%emt 0:01:07]} 39. Nf8+ {[%emt 0:00:49]} Kc6 {[%emt 0:01:21]} 40. Rexe7 {[%emt 0:00:00]} Rxe7 {[%emt 0:00:00]} 41. Rxe7 {[%emt 0:00:28]} Kxb6 {[%emt 0:00:40]} 42. g4 {[%emt 0:05:50]} hxg4 {[%emt 0:03:18]} 43. hxg4 {[%emt 0:00:04]} Nf3+ {[%emt 0:01:27]} 44. Kg2 {[%emt 0:01:49]} Rxf4 {[%emt 0:00:28]} 45. Nd7+ {[%emt 0:00:23]} Kc6 {[%emt 0:14:14]} 46. Kg3 {[%emt 0:00:21]} Ne5 {[%emt 0:00:19]} 47. Nxe5+ {[%emt 0:09:12]} dxe5 {[%emt 0:00:13]} 48. Rxe5 {[%emt 0:00:46]} Rf6 {[%emt 0:00:16]} 49. Kh4 {[%emt 0:00:16]} b5 {[%emt 0:00:49]} 50. Kh5 {[%emt 0:00:07]} b4 {[%emt 0:00:37]} 51. Ra5 {[%emt 0:01:15]} Kb6 {[%emt 0:03:30]} 52. Re5 {[%emt 0:00:33]} Ka6 {[%emt 0:02:46]} 53. Rd5 {[%emt 0:01:38]} Rb6 {[%emt 0:00:33]} 54. Rf5 {[%emt 0:00:08]} b3 {[%emt 0:00:23]} 55. Rf3 {[%emt 0:00:59]} b2 {[%emt 0:01:53]} 56. Rf1 {[%emt 0:00:55]} Kb5 {[%emt 0:02:49]} 57. Rb1 {[%emt 0:00:51]} Kc5 {[%emt 0:00:32]} 58. Rxb2 {[%emt 0:01:20]} Rxb2 {[%emt 0:00:08]} 59. Kxh6 {[%emt 0:00:02]} Kd5 {[%emt 0:00:28]} 60. g5 {[%emt 0:00:05]} Ke6 {[%emt 0:00:15]} 0-1

[Event "RUS-chT Higher League 2021"]
[Site "Sochi"]
[Date "2021.05.01"]
[Round "1.13"]
[White "Glek, Igor"]
[Black "Khegay, Dmitriy"]
[Result "1/2-1/2"]
[ECO "C44"]
[WhiteElo "2475"]
[BlackElo "2523"]
[Annotator "ChessBase"]
[PlyCount "148"]
[EventDate "2021.05.01"]
[EventType "team-tourn"]
[EventCountry "RUS"]
[SourceTitle "playchess.com"]
[Source "ChessBase"]
[SourceQuality "1"]
[TimeControl "40/5400+30:1800+30"]

1. e4 {[%emt 0:00:00]} e5 {[%emt 0:00:00]} 2. Nf3 {[%emt 0:03:28]} Nc6 {[%emt 0:00:00]} 3. d4 {[%emt 0:00:59]} exd4 {[%emt 0:00:00]} 4. Nxd4 {[%emt 0:00:49]} Nf6 {[%emt 0:00:00]} 5. Nc3 {[%emt 0:00:07]} Bb4 {[%emt 0:00:04]} 6. Nxc6 {[%emt 0:00:11]} bxc6 {[%emt 0:00:04]} 7. Bd3 {[%emt 0:00:06]} d5 {[%emt 0:00:11]} 8. exd5 {[%emt 0:00:06]} cxd5 {[%emt 0:00:04]} 9. O-O {[%emt 0:00:10]} O-O {[%emt 0:00:04]} 10. h3 {[%emt 0:01:40]} c6 {[%emt 0:02:07]} 11. Bf4 {[%emt 0:01:24]} Bd6 {[%emt 0:01:42]} 12. Qf3 {[%emt 0:01:14]} Rb8 {[%emt 0:00:29]} 13. b3 {[%emt 0:01:20]} Rb4 {[%emt 0:00:29]} 14. Bxd6 {[%emt 0:04:37]} Qxd6 {[%emt 0:00:27]} 15. Rfe1 {[%emt 0:00:09]} Be6 {[%emt 0:00:11]} 16. Ne2 {[%emt 0:01:38]} Re8 {[%emt 0:05:59]} 17. c3 {[%emt 0:06:17]} Rb7 {[%emt 0:00:14]} 18. Qf4 {[%emt 0:04:02]} Qxf4 {[%emt 0:01:25]} 19. Nxf4 {[%emt 0:00:02]} Rbe7 {[%emt 0:00:08]} 20. Kf1 {[%emt 0:08:25]} Bd7 {[%emt 0:05:43]} 21. Rxe7 {[%emt 0:02:41]} Rxe7 {[%emt 0:00:06]} 22. Re1 {[%emt 0:00:06]} Kf8 {[%emt 0:00:03]} 23. c4 {[%emt 0:11:39]} dxc4 {[%emt 0:02:49]} 24. Bxc4 {[%emt 0:05:52]} Ne4 {[%emt 0:00:09]} 25. Rd1 {[%emt 0:00:13]} Nc3 {[%emt 0:07:14]} 26. Rd2 {[%emt 0:00:11]} Ne4 {[%emt 0:02:02]} 27. Rb2 {[%emt 0:03:21]} g5 {[%emt 0:01:19]} 28. Ne2 {[%emt 0:06:20]} c5 {[%emt 0:03:16]} 29. f3 {[%emt 0:10:11]} Nd6 {[%emt 0:00:11]} 30. Bd3 {[%emt 0:00:10]} Be6 {[%emt 0:01:56]} 31. Rc2 {[%emt 0:02:56]} Rc7 {[%emt 0:00:32]} 32. Bxh7 {[%emt 0:07:30]} f5 {[%emt 0:02:10]} 33. Bg6 {[%emt 0:00:04]} Kg7 {[%emt 0:00:55]} 34. Bh5 {[%emt 0:00:27]} c4 {[%emt 0:05:25]} 35. b4 {[%emt 0:13:15]} Kf6 {[%emt 0:00:05]} 36. Nc3 {[%emt 0:02:07]} Rb7 {[%emt 0:00:10]} 37. a3 {[%emt 0:00:43]} Nb5 {[%emt 0:02:03]} 38. Be8 {[%emt 0:02:05]} Nxc3 {[%emt 0:04:03]} 39. Rxc3 {[%emt 0:00:01]} Re7 {[%emt 0:03:36]} 40. Ba4 {[%emt 0:00:00]} Ke5 {[%emt 0:00:00]} 41. Re3+ {[%emt 0:04:12]} Kd6 {[%emt 0:14:03]} 42. Bc2 {[%emt 0:10:59]} Rb7 {[%emt 0:01:39]} 43. Ke1 {[%emt 0:01:33]} f4 {[%emt 0:11:14]} 44. Re4 {[%emt 0:00:25]} c3 {[%emt 0:12:09]} 45. Kd1 {[%emt 0:01:25]} Rc7 {[%emt 0:01:19]} 46. Kc1 {[%emt 0:00:28]} Bc4 {[%emt 0:02:45]} 47. Bd3 {[%emt 0:02:02]} Kd5 {[%emt 0:07:27]} 48. Bxc4+ {[%emt 0:01:49]} Rxc4 {[%emt 0:00:07]} 49. Re7 {[%emt 0:00:55]} a5 {[%emt 0:00:05]} 50. Re4 {[%emt 0:07:39]} axb4 {[%emt 0:04:38]} 51. axb4 {[%emt 0:00:02]} Rd4 {[%emt 0:02:00]} 52. Rxd4+ {[%emt 0:01:57]} Kxd4 {[%emt 0:00:03]} 53. Kc2 {[%emt 0:00:28]} Kc4 {[%emt 0:00:04]} 54. b5 {[%emt 0:00:04]} Kxb5 {[%emt 0:00:04]} 55. Kxc3 {[%emt 0:00:03]} Kc5 {[%emt 0:00:06]} 56. Kd3 {[%emt 0:00:07]} Kd5 {[%emt 0:00:04]} 57. Ke2 {[%emt 0:00:17]} Ke6 {[%emt 0:00:09]} 58. Kf2 {[%emt 0:00:12]} Kf6 {[%emt 0:00:16]} 59. Kg1 {[%emt 0:01:01]} Kg6 {[%emt 0:01:35]} 60. Kf1 {[%emt 0:00:40]} Kf5 {[%emt 0:00:14]} 61. Ke1 {[%emt 0:00:14]} Ke5 {[%emt 0:00:14]} 62. Ke2 {[%emt 0:00:13]} Ke6 {[%emt 0:00:07]} 63. Kf2 {[%emt 0:01:11]} Kf6 {[%emt 0:00:06]} 64. g3 {[%emt 0:01:18]} fxg3+ {[%emt 0:00:43]} 65. Kxg3 {[%emt 0:00:15]} Kf5 {[%emt 0:00:14]} 66. Kg2 {[%emt 0:00:05]} Ke5 {[%emt 0:00:12]} 67. Kf1 {[%emt 0:00:09]} Kf5 {[%emt 0:00:24]} 68. Ke2 {[%emt 0:00:07]} Ke5 {[%emt 0:00:38]} 69. Kf2 {[%emt 0:00:15]} Kf4 {[%emt 0:00:09]} 70. Kg2 {[%emt 0:00:02]} Ke5 {[%emt 0:00:07]} 71. Kg3 {[%emt 0:00:32]} Kf5 {[%emt 0:00:05]} 72. h4 {[%emt 0:00:06]} gxh4+ {[%emt 0:00:04]} 73. Kxh4 {[%emt 0:00:03]} Kf4 {[%emt 0:00:05]} 74. Kh5 {[%emt 0:00:03]} Kxf3 {[%emt 0:00:04]} 1/2-1/2

[Event "RUS-chT Higher League 2021"]
[Site "Sochi"]
[Date "2021.05.01"]
[Round "1.14"]
[White "Yudin, Sergei"]
[Black "Eyvazov, Elkhan"]
[Result "1-0"]
[ECO "B06"]
[WhiteElo "2484"]
[BlackElo "2137"]
[Annotator "ChessBase"]
[PlyCount "71"]
[EventDate "2021.05.01"]
[EventType "team-tourn"]
[EventCountry "RUS"]
[SourceTitle "playchess.com"]
[Source "ChessBase"]
[SourceQuality "1"]
[TimeControl "40/5400+30:1800+30"]

1. e4 {[%emt 0:00:00]} g6 {[%emt 0:00:00]} 2. d4 {[%emt 0:00:00]} Bg7 {[%emt 0:00:19]} 3. c3 {[%emt 0:01:32]} d6 {[%emt 0:00:14]} 4. Nf3 {[%emt 0:00:17]} Nf6 {[%emt 0:00:07]} 5. Bd3 {[%emt 0:00:06]} Nc6 {[%emt 0:00:05]} 6. d5 {[%emt 0:00:35]} Nb8 {[%emt 0:00:05]} 7. c4 {[%emt 0:00:05]} O-O {[%emt 0:00:09]} 8. Nc3 {[%emt 0:00:05]} Na6 {[%emt 0:00:57]} 9. O-O {[%emt 0:01:04]} Nc5 {[%emt 0:00:32]} 10. Bc2 {[%emt 0:00:21]} a5 {[%emt 0:01:08]} 11. h3 {[%emt 0:02:06]} c6 {[%emt 0:04:41]} 12. Be3 {[%emt 0:01:10]} Ncd7 {[%emt 0:04:47]} 13. Nd4 {[%emt 0:04:03]} c5 {[%emt 0:06:39]} 14. Ndb5 {[%emt 0:00:44]} Nb6 {[%emt 0:00:01]} 15. Qe2 {[%emt 0:00:32]} Nfd7 {[%emt 0:02:51]} 16. a4 {[%emt 0:03:20]} Nb8 {[%emt 0:02:14]} 17. Rad1 {[%emt 0:00:06]} Na6 {[%emt 0:03:01]} 18. f4 {[%emt 0:00:09]} f5 {[%emt 0:05:18]} 19. exf5 {[%emt 0:01:20]} Bxf5 {[%emt 0:00:42]} 20. Bxf5 {[%emt 0:00:11]} Rxf5 {[%emt 0:00:34]} 21. b3 {[%emt 0:00:13]} Qd7 {[%emt 0:01:21]} 22. Ne4 {[%emt 0:00:11]} h6 {[%emt 0:01:37]} 23. Qg4 {[%emt 0:02:46]} Kh7 {[%emt 0:00:28]} 24. Ng3 {[%emt 0:00:16]} h5 {[%emt 0:00:30]} 25. Qe2 {[%emt 0:00:19]} Rf7 {[%emt 0:08:16]} 26. f5 {[%emt 0:02:37]} gxf5 {[%emt 0:07:35]} 27. Qxh5+ {[%emt 0:00:20]} Kg8 {[%emt 0:00:02]} 28. Nxf5 {[%emt 0:00:14]} Qe8 {[%emt 0:14:11]} 29. Rf3 {[%emt 0:01:25]} Rxf5 {[%emt 0:15:08]} 30. Qxf5 {[%emt 0:00:26]} Nd7 {[%emt 0:05:15]} 31. Rg3 {[%emt 0:03:16]} Kh8 {[%emt 0:04:02]} 32. Qg5 {[%emt 0:00:34]} Qg8 {[%emt 0:07:53]} 33. Qxe7 {[%emt 0:00:27]} Nf6 {[%emt 0:00:49]} 34. Bh6 {[%emt 0:01:25]} Ne8 {[%emt 0:01:20]} 35. Bxg7+ {[%emt 0:00:16]} Nxg7 {[%emt 0:00:30]} 36. Nxd6 {[%emt 0:00:13]} 1-0

[Event "RUS-chT Higher League 2021"]
[Site "Sochi"]
[Date "2021.05.01"]
[Round "1.15"]
[White "Mikhaylov, Artem"]
[Black "Pogromsky, Mikhail"]
[Result "0-1"]
[ECO "E10"]
[WhiteElo "2100"]
[BlackElo "2422"]
[Annotator "NA"]
[PlyCount "118"]
[EventDate "2021.05.01"]
[EventType "team-tourn"]
[EventCountry "RUS"]
[SourceTitle "playchess.com"]
[Source "ChessBase"]
[SourceQuality "1"]
[TimeControl "40/5400+30:1800+30"]

1. d4 {[%emt 0:00:00]} Nf6 {[%emt 0:00:00]} 2. c4 {[%emt 0:00:00]} e6 {[%emt 0:00:00]} 3. Nf3 {[%emt 0:00:00]} a6 {[%emt 0:00:12]} 4. g3 {[%emt 0:01:09]} b5 {[%emt 0:00:36]} 5. cxb5 {[%emt 0:00:32]} axb5 {[%emt 0:00:14]} 6. Bg2 {[%emt 0:00:04]} Bb7 {[%emt 0:02:33]} 7. O-O {[%emt 0:00:20]} Be7 {[%emt 0:03:37]} 8. Nbd2 {[%emt 0:06:44]} O-O {[%emt 0:03:42]} 9. Qc2 {[%emt 0:00:48]} Na6 {[%emt 0:04:18]} 10. e4 {[%emt 0:02:54]} d5 {[%emt 0:22:05]} 11. exd5 {[%emt 0:11:21]} Bxd5 {[%emt 0:07:57]} 12. a3 {[%emt 0:02:07]} c5 {[%emt 0:08:05]} 13. Qd3 {[%emt 0:15:40]} c4 {[%emt 0:10:27]} 14. Qe3 {[%emt 0:02:30]} Nb4 {[%emt 0:05:12]} 15. Rb1 {[%emt 0:02:19]} Nd3 {[%emt 0:02:44]} 16. Ne5 {[%emt 0:01:28]} Bxg2 {[%emt 0:09:43]} 17. Kxg2 {[%emt 0:00:09]} Qd5+ {[%emt 0:02:51]} 18. Ndf3 {[%emt 0:01:25]} Nxe5 {[%emt 0:01:04]} 19. dxe5 {[%emt 0:01:39]} Ne4 {[%emt 0:01:06]} 20. Re1 {[%emt 0:03:33]} Nc5 {[%emt 0:02:06]} 21. Qe2 {[%emt 0:02:35]} Rfd8 {[%emt 0:01:12]} 22. Kg1 {[%emt 0:04:42]} Nd3 {[%emt 0:02:14]} 23. Rd1 {[%emt 0:02:24]} Bc5 {[%emt 0:00:21]} 24. Be3 {[%emt 0:00:47]} Qe4 {[%emt 0:02:16]} 25. Ng5 {[%emt 0:00:28]} Qxe5 {[%emt 0:00:30]} 26. Qh5 {[%emt 0:00:54]} Qf5 {[%emt 0:03:02]} 27. g4 {[%emt 0:00:45]} Qg6 {[%emt 0:00:05]} 28. Qxg6 {[%emt 0:00:35]} hxg6 {[%emt 0:00:06]} 29. Rxd3 {[%emt 0:00:04]} Rxd3 {[%emt 0:03:45]} 30. Bxc5 {[%emt 0:01:13]} Rad8 {[%emt 0:00:03]} 31. Be3 {[%emt 0:03:27]} Rd1+ {[%emt 0:01:26]} 32. Rxd1 {[%emt 0:00:06]} Rxd1+ {[%emt 0:00:02]} 33. Kg2 {[%emt 0:00:07]} e5 {[%emt 0:00:13]} 34. Ne4 {[%emt 0:05:10]} Rb1 {[%emt 0:00:44]} 35. g5 {[%emt 0:01:44]} Rxb2 {[%emt 0:00:40]} 36. Bc5 {[%emt 0:00:06]} f5 {[%emt 0:01:36]} 37. gxf6 {[%emt 0:00:17]} gxf6 {[%emt 0:00:00]} 38. Nxf6+ {[%emt 0:00:28]} Kf7 {[%emt 0:00:07]} 39. Ne4 {[%emt 0:01:15]} Ke6 {[%emt 0:01:45]} 40. Nc3 {[%emt 0:00:00]} Kd7 {[%emt 0:00:00]} 41. Bb4 {[%emt 0:04:35]} Kc6 {[%emt 0:02:30]} 42. Kf3 {[%emt 0:00:50]} Rd2 {[%emt 0:05:23]} 43. h4 {[%emt 0:06:59]} Rd4 {[%emt 0:04:11]} 44. Kg3 {[%emt 0:00:58]} e4 {[%emt 0:01:50]} 45. Ne2 {[%emt 0:04:10]} Rd3+ {[%emt 0:02:12]} 46. Kg4 {[%emt 0:05:11]} e3 {[%emt 0:05:19]} 47. f4 {[%emt 0:01:15]} Rd1 {[%emt 0:00:44]} 48. h5 {[%emt 0:07:46]} gxh5+ {[%emt 0:01:38]} 49. Kxh5 {[%emt 0:00:06]} Rf1 {[%emt 0:01:37]} 50. Kg4 {[%emt 0:06:11]} Rf2 {[%emt 0:04:32]} 51. Nd4+ {[%emt 0:04:23]} Kd5 {[%emt 0:00:10]} 52. Nxb5 {[%emt 0:01:16]} Ke4 {[%emt 0:00:34]} 53. a4 {[%emt 0:08:25]} Rxf4+ {[%emt 0:03:04]} 54. Kg3 {[%emt 0:01:13]} Rf1 {[%emt 0:00:57]} 55. a5 {[%emt 0:00:15]} Rg1+ {[%emt 0:00:22]} 56. Kh2 {[%emt 0:00:16]} Ra1 {[%emt 0:00:53]} 57. Kg2 {[%emt 0:03:09]} Kd3 {[%emt 0:00:43]} 58. Na3 {[%emt 0:00:59]} e2 {[%emt 0:00:57]} 59. a6 {[%emt 0:00:41]} Rxa3 0-1

[Event "RUS-chT Higher League 2021"]
[Site "Sochi"]
[Date "2021.05.01"]
[Round "1.16"]
[White "Matveev, Vladimir"]
[Black "Yarikov, Artem"]
[Result "1-0"]
[ECO "D11"]
[WhiteElo "2368"]
[BlackElo "1798"]
[Annotator "NA"]
[PlyCount "81"]
[EventDate "2021.05.01"]
[EventType "team-tourn"]
[EventCountry "RUS"]
[SourceTitle "playchess.com"]
[Source "ChessBase"]
[SourceQuality "1"]
[TimeControl "40/5400+30:1800+30"]

1. d4 {[%emt 0:00:00]} d5 {[%emt 0:00:00]} 2. c4 {[%emt 0:00:00]} c6 {[%emt 0:00:00]} 3. Nf3 {[%emt 0:00:00]} Nf6 {[%emt 0:00:00]} 4. Qb3 {[%emt 0:00:04]} g6 {[%emt 0:00:45]} 5. Nc3 {[%emt 0:04:42]} Bg7 {[%emt 0:00:55]} 6. cxd5 {[%emt 0:01:22]} Nxd5 {[%emt 0:00:33]} 7. e4 {[%emt 0:02:19]} Nxc3 {[%emt 0:00:31]} 8. bxc3 {[%emt 0:00:05]} O-O {[%emt 0:00:36]} 9. Ba3 {[%emt 0:07:57]} b6 {[%emt 0:15:18]} 10. Rd1 {[%emt 0:01:56]} Qc7 {[%emt 0:02:48]} 11. Be2 {[%emt 0:06:08]} Bb7 {[%emt 0:06:51]} 12. O-O {[%emt 0:02:11]} Re8 {[%emt 0:03:11]} 13. e5 {[%emt 0:09:49]} e6 {[%emt 0:02:52]} 14. Bd6 {[%emt 0:09:55]} Qc8 {[%emt 0:01:10]} 15. c4 {[%emt 0:00:38]} Nd7 {[%emt 0:14:42]} 16. c5 {[%emt 0:11:44]} Ba6 {[%emt 0:04:40]} 17. Rfe1 {[%emt 0:03:15]} Bxe2 {[%emt 0:00:38]} 18. Rxe2 {[%emt 0:00:04]} b5 {[%emt 0:00:27]} 19. h4 {[%emt 0:03:20]} h5 {[%emt 0:08:05]} 20. Qe3 {[%emt 0:01:31]} Nf8 {[%emt 0:02:36]} 21. Qf4 {[%emt 0:05:21]} Nh7 {[%emt 0:01:32]} 22. g4 {[%emt 0:00:36]} hxg4 {[%emt 0:01:10]} 23. Qxg4 {[%emt 0:00:03]} b4 {[%emt 0:03:05]} 24. h5 {[%emt 0:02:43]} gxh5 {[%emt 0:01:31]} 25. Qxh5 {[%emt 0:00:17]} Qa6 {[%emt 0:00:48]} 26. Re4 {[%emt 0:00:40]} Qxa2 {[%emt 0:00:51]} 27. Rf4 {[%emt 0:02:50]} Qc2 {[%emt 0:02:55]} 28. Qxf7+ {[%emt 0:06:07]} Kh8 {[%emt 0:00:29]} 29. Nh4 {[%emt 0:00:11]} Bh6 {[%emt 0:10:11]} 30. Ng6+ {[%emt 0:00:17]} Qxg6+ {[%emt 0:00:12]} 31. Qxg6 {[%emt 0:00:04]} Rg8 {[%emt 0:00:09]} 32. Rg4 {[%emt 0:00:12]} Rxg6 {[%emt 0:00:35]} 33. Rxg6 {[%emt 0:00:06]} Bg5 {[%emt 0:04:47]} 34. d5 {[%emt 0:06:19]} a5 {[%emt 0:03:55]} 35. dxe6 {[%emt 0:00:21]} a4 {[%emt 0:00:52]} 36. e7 {[%emt 0:00:08]} a3 {[%emt 0:00:54]} 37. e6 {[%emt 0:00:06]} Bf6 {[%emt 0:03:42]} 38. Be5 {[%emt 0:00:13]} Nf8 {[%emt 0:02:51]} 39. Bxf6+ {[%emt 0:00:15]} Kh7 {[%emt 0:00:09]} 40. Rg7+ {[%emt 0:00:00]} Kh6 {[%emt 0:00:00]} 41. Kg2 {[%emt 0:00:09]} 1-0

[Event "RUS-chT Higher League 2021"]
[Site "Sochi"]
[Date "2021.05.02"]
[Round "2.3"]
[White "Sergeyev, Alexander"]
[Black "Drygalov, Andrey"]
[Result "1/2-1/2"]
[ECO "D43"]
[WhiteElo "2357"]
[BlackElo "2500"]
[Annotator "ChessBase"]
[PlyCount "93"]
[EventDate "2021.05.01"]
[EventType "team-tourn"]
[EventCountry "RUS"]
[SourceTitle "playchess.com"]
[Source "ChessBase"]
[SourceQuality "1"]
[TimeControl "40/5400+30:1800+30"]

1. d4 {[%emt 0:00:00]} Nf6 {[%emt 0:00:00]} 2. c4 {[%emt 0:00:00]} e6 {[%emt 0:00:00]} 3. Nf3 {[%emt 0:01:07]} d5 {[%emt 0:00:00]} 4. Nc3 {[%emt 0:03:21]} c6 {[%emt 0:00:00]} 5. cxd5 {[%emt 0:02:04]} exd5 {[%emt 0:00:00]} 6. Qc2 {[%emt 0:00:10]} Be7 {[%emt 0:01:26]} 7. Bg5 {[%emt 0:00:36]} g6 {[%emt 0:00:46]} 8. e3 {[%emt 0:00:55]} Bf5 {[%emt 0:00:36]} 9. Bd3 {[%emt 0:00:11]} Bxd3 {[%emt 0:00:03]} 10. Qxd3 {[%emt 0:00:08]} Nbd7 {[%emt 0:00:49]} 11. O-O {[%emt 0:02:52]} O-O {[%emt 0:00:45]} 12. Rab1 {[%emt 0:01:26]} a5 {[%emt 0:00:05]} 13. Qc2 {[%emt 0:04:19]} Re8 {[%emt 0:00:46]} 14. Rfd1 {[%emt 0:08:12]} Bd6 {[%emt 0:25:32]} 15. Na4 {[%emt 0:17:44]} Qc7 {[%emt 0:01:31]} 16. Bxf6 {[%emt 0:03:45]} Nxf6 {[%emt 0:01:11]} 17. a3 {[%emt 0:01:23]} Qe7 {[%emt 0:03:53]} 18. Nc5 {[%emt 0:14:15]} Bxc5 {[%emt 0:05:04]} 19. dxc5 {[%emt 0:00:25]} a4 {[%emt 0:02:54]} 20. Rbc1 {[%emt 0:05:02]} Ra5 {[%emt 0:00:56]} 21. Ne1 {[%emt 0:05:03]} Nd7 {[%emt 0:09:04]} 22. Nd3 {[%emt 0:00:40]} Rea8 {[%emt 0:00:23]} 23. Qc3 {[%emt 0:03:40]} Rb5 {[%emt 0:00:48]} 24. Rd2 {[%emt 0:00:59]} Rb3 {[%emt 0:14:08]} 25. Qd4 {[%emt 0:00:28]} Nf8 {[%emt 0:00:10]} 26. Nf4 {[%emt 0:05:43]} Ra5 {[%emt 0:00:49]} 27. Rdc2 {[%emt 0:02:46]} Ne6 {[%emt 0:10:47]} 28. Qe5 {[%emt 0:01:35]} Rab5 {[%emt 0:04:28]} 29. h4 {[%emt 0:00:15]} Qc7 {[%emt 0:01:59]} 30. Qf6 {[%emt 0:00:04]} Qd8 {[%emt 0:00:49]} 31. Qe5 {[%emt 0:00:01]} Ng7 {[%emt 0:04:38]} 32. h5 {[%emt 0:07:47]} Qe8 {[%emt 0:07:56]} 33. Qf6 {[%emt 0:01:12]} Qe4 {[%emt 0:01:44]} 34. Rd2 {[%emt 0:02:46]} Ne8 {[%emt 0:00:29]} 35. Qd8 {[%emt 0:00:29]} Kf8 {[%emt 0:01:21]} 36. hxg6 {[%emt 0:02:23]} hxg6 {[%emt 0:00:02]} 37. Rd4 {[%emt 0:00:23]} Qf5 {[%emt 0:00:45]} 38. Rxa4 {[%emt 0:01:02]} Qf6 {[%emt 0:00:23]} 39. Qd7 {[%emt 0:02:01]} Rxb2 {[%emt 0:01:29]} 40. Ra8 {[%emt 0:00:00]} Qe7 {[%emt 0:00:00]} 41. Qh3 {[%emt 0:02:57]} Kg7 {[%emt 0:02:43]} 42. Qc8 {[%emt 0:03:58]} Rb1 {[%emt 0:02:57]} 43. Rxb1 {[%emt 0:00:28]} Rxb1+ {[%emt 0:00:01]} 44. Kh2 {[%emt 0:00:01]} Kf8 {[%emt 0:00:14]} 45. Qh3 {[%emt 0:04:35]} Kg7 {[%emt 0:06:06]} 46. Qc8 {[%emt 0:02:56]} Kf8 {[%emt 0:00:04]} 47. Qh3 {[%emt 0:02:06]} 1/2-1/2